fUST/lending_fUST_20240304
["ID","MTS","AMOUNT","RATE_DAILY","PERIOD"]
[316613713,1709563846534,-2415.19,0.00024657,2]
[316613714,1709563846543,-2415.19,0.00024657,2]
[316613716,1709563846552,-2415.19,0.00024657,2]
[316613718,1709563846561,-2415.19,0.00024657,2]
[316613720,1709563846571,-500.0,0.00024657,2]
[316613722,1709563846582,-2415.19,0.00024657,2]
[316613724,1709563846591,-500.0,0.00024657,2]
[316613726,1709563846600,-1104.13705813,0.00024657,2]
[316613929,1709563848588,-558.66803084,0.00024655,2]
[316613931,1709563848598,-154.86062544,0.00024656,2]
[316613933,1709563848607,-1311.05294187,0.00024657,2]
[316613935,1709563848617,-503.1181522,0.00024657,2]
[316613937,1709563848626,-2415.20173474,0.00024657,2]
[316613939,1709563848636,-500.0,0.00024657,2]
[316613941,1709563848646,-500.0,0.00024657,2]
[316613943,1709563848655,-357.86717984,0.00024657,2]
[316613945,1709563848669,-500.0,0.00024657,2]
[316613947,1709563848678,-500.0,0.00024657,2]
[316613949,1709563848688,-5007.87,0.00024657,2]
[316613951,1709563848698,-5007.87,0.00024657,2]
[316613953,1709563848708,-5007.87,0.00024657,2]
[316613955,1709563848718,-5007.87,0.00024657,2]
[316613957,1709563848727,-5007.87,0.00024657,2]
[316613959,1709563848737,-5007.87,0.00024657,2]
[316613961,1709563848750,-5007.87,0.00024657,2]
[316613963,1709563848761,-5007.87,0.00024657,2]
[316613965,1709563848770,-5007.87,0.00024657,2]
[316613966,1709563848779,-500.0,0.00024657,2]
[316613969,1709563848789,-5007.87,0.00024657,2]
[316613970,1709563848798,-5007.87,0.00024657,2]
[316613972,1709563848808,-5007.87,0.00024657,2]
[316613974,1709563848817,-5007.87,0.00024657,2]
[316613976,1709563848826,-500.0,0.00024657,2]
[316613978,1709563848836,-5007.87,0.00024657,2]
[316613980,1709563848845,-5007.87,0.00024657,2]
[316613982,1709563848854,-500.0,0.00024657,2]
[316613984,1709563848863,-5007.87,0.00024657,2]
[316613986,1709563848873,-500.0,0.00024657,2]
[316613988,1709563848882,-5007.87,0.00024657,2]
[316613989,1709563848892,-500.0,0.00024657,2]
[316613990,1709563848902,-5007.87,0.00024657,2]
[316613991,1709563848914,-500.0,0.00024657,2]
[316613992,1709563848924,-5007.87,0.00024657,2]
[316613993,1709563848933,-535.90776332,0.00024657,2]
[316613994,1709563849008,-5007.87,0.00024657,2]
[316613995,1709563849018,-5007.87,0.00024657,2]
[316613996,1709563849027,-5007.87,0.00024657,2]
[316613997,1709563849036,-5007.87,0.00024657,2]
[316613998,1709563849046,-5008.1,0.00024657,2]
[316613999,1709563849055,-500.0,0.00024657,2]
[316614000,1709563849064,-500.0,0.00024657,2]
[316614001,1709563849074,-500.0,0.00024657,2]
[316614002,1709563849083,-500.0,0.00024657,2]
[316614003,1709563849092,-500.0,0.00024657,2]
[316614005,1709563849101,-500.0,0.00024657,2]
[316614006,1709563849110,-500.0,0.00024657,2]
[316614008,1709563849120,-500.0,0.00024657,2]
[316614010,1709563849129,-641.63622781,0.00024657,2]
[316614012,1709563849140,-1183.8,0.00024657,2]
[316614014,1709563849149,-1183.8,0.00024657,2]
[316614016,1709563849161,-1183.8,0.00024657,2]
[316614018,1709563849171,-618.42261535,0.00024657,2]
[316614020,1709563849180,-1183.8,0.00024657,2]
[316614022,1709563849189,-1183.8,0.00024657,2]
[316614024,1709563849198,-1183.8,0.00024657,2]
[316614026,1709563849207,-500.0,0.00024657,2]
[316614028,1709563849216,-1183.8,0.00024657,2]
[316614030,1709563849225,-500.0,0.00024657,2]
[316614032,1709563849234,-1183.8,0.00024657,2]
[316614034,1709563849242,-500.0,0.00024657,2]
[316614036,1709563849251,-501.88047804,0.00024657,2]
[316614038,1709563849261,-1183.8,0.00024657,2]
[316614040,1709563849270,-1183.8,0.00024657,2]
[316614042,1709563849279,-1183.8,0.00024657,2]
[316614044,1709563849289,-1183.8,0.00024657,2]
[316614046,1709563849298,-1183.8,0.00024657,2]
[316614048,1709563849307,-500.0,0.00024657,2]
[316614050,1709563849316,-1183.8,0.00024657,2]
[316614052,1709563849325,-323.47568714,0.00024657,2]
[316614054,1709563849334,-1183.8,0.00024657,2]
[316614055,1709563849343,-515.87,0.00024657,2]
[316614056,1709563849352,-1183.8,0.00024657,2]
[316614058,1709563849361,-515.87,0.00024657,2]
[316614060,1709563849371,-500.0,0.00024657,2]
[316614062,1709563849381,-1183.8,0.00024657,2]
[316614064,1709563849391,-515.87,0.00024657,2]
[316614066,1709563849401,-500.0,0.00024657,2]
[316614068,1709563849414,-1183.8,0.00024657,2]
[316614070,1709563849424,-500.0,0.00024657,2]
[316614072,1709563849433,-515.87,0.00024657,2]
[316614074,1709563849445,-501.91025126,0.00024657,2]
[316614076,1709563849454,-515.87,0.00024657,2]
[316614078,1709563849464,-1183.8,0.00024657,2]
[316614080,1709563849474,-515.87,0.00024657,2]
[316614082,1709563849483,-515.87,0.00024657,2]
[316614084,1709563849492,-1183.8,0.00024657,2]
[316614086,1709563849501,-1183.8,0.00024657,2]
[316614087,1709563849511,-515.87,0.00024657,2]
[316614090,1709563849521,-1183.8,0.00024657,2]
[316614091,1709563849530,-1183.8,0.00024657,2]
[316614093,1709563849540,-515.87,0.00024657,2]
[316614095,1709563849549,-1184.01735273,0.00024657,2]
[316614097,1709563849558,-515.87,0.00024657,2]
[316614099,1709563849567,-515.87,0.00024657,2]
[316614101,1709563849577,-515.87,0.00024657,2]
[316614103,1709563849586,-515.87,0.00024657,2]
[316614105,1709563849595,-515.87,0.00024657,2]
[316614107,1709563849604,-515.87,0.00024657,2]
[316614109,1709563849613,-515.87,0.00024657,2]
[316614111,1709563849624,-515.87,0.00024657,2]
[316614113,1709563849633,-515.87,0.00024657,2]
[316614115,1709563849642,-515.87,0.00024657,2]
[316614117,1709563849651,-515.87,0.00024657,2]
[316614119,1709563849664,-515.87,0.00024657,2]
[316614121,1709563849672,-515.87,0.00024657,2]
[316614123,1709563849681,-515.87,0.00024657,2]
[316614125,1709563849690,-515.89564216,0.00024657,2]
[316614127,1709563849699,-500.0,0.00024657,2]
[316614129,1709563849710,-225.25777212,0.00024657,2]
[316614131,1709563849719,-500.0,0.00024657,2]
[316614132,1709563849728,-323.25098334,0.00024657,2]
[316614134,1709563849738,-501.09705016,0.00024657,2]
[316614136,1709563849747,-500.61342111,0.00024657,2]
[316614139,1709563849761,-500.0,0.00024657,2]
[316614141,1709563849770,-500.0,0.00024657,2]
[316614142,1709563849780,-500.0,0.00024657,2]
[316614144,1709563849789,-500.0,0.00024657,2]
[316614146,1709563849799,-500.0,0.00024657,2]
[316614148,1709563849808,-500.0,0.00024657,2]
[316614150,1709563849817,-538.83865646,0.00024657,2]
[316614152,1709563849827,-380.0,0.00024658,2]
[316614154,1709563849837,-659.6135653,0.00024738,2]
[316614156,1709563849846,-8238.30978747,0.0002475,2]
[316614158,1709563849857,-7890.86670162,0.00024796,4]
[316614160,1709563849866,-10182.18030754,0.00024796,4]
[316614162,1709563849876,-457.569545,0.000248,11]
[316614164,1709563849886,-581.0,0.000248,2]
[316614166,1709563849895,-659.6135653,0.00024843,2]
[316614168,1709563849904,-182.71180245,0.00024911,2]
[316614170,1709563849920,-38634.00306212,0.00024931,2]
[316614172,1709563849929,-155.31403531,0.00024931,2]
[316614174,1709563849939,-321.4643478,0.00024931,2]
[316614176,1709563849948,-1082.23243385,0.00024931,2]
[316614178,1709563849957,-180.13126465,0.00024931,2]
[316614180,1709563849967,-162.17139048,0.00024931,2]
[316614182,1709563849976,-169.92512987,0.00024931,2]
[316614184,1709563849986,-300.84446967,0.00024931,2]
[316614186,1709563849995,-161.4660452,0.00024932,2]
[316614188,1709563850004,-203.7109309,0.00024932,2]
[316614190,1709563850013,-151.0,0.0002494,2]
[316614192,1709563850023,-151.0,0.0002494,2]
[316614194,1709563850032,-151.125796,0.0002494,2]
[316614196,1709563850042,-151.0,0.0002494,2]
[316614198,1709563850051,-151.0,0.0002494,2]
[316614199,1709563850061,-151.0,0.0002494,2]
[316614201,1709563850070,-151.0,0.0002494,2]
[316614203,1709563850080,-151.0,0.00024942,2]
[316614205,1709563850090,-151.0,0.00024942,2]
[316614207,1709563850100,-151.0,0.00024942,2]
[316614209,1709563850110,-151.0,0.00024942,2]
[316614211,1709563850120,-151.0,0.00024942,2]
[316614213,1709563850130,-151.0,0.00024942,2]
[316614215,1709563850140,-151.0,0.00024942,2]
[316614217,1709563850150,-151.0,0.00024942,2]
[316614219,1709563850162,-151.0,0.00024942,2]
[316614221,1709563850171,-151.0,0.00024942,2]
[316614223,1709563850180,-151.0,0.00024942,2]
[316614224,1709563850190,-151.0,0.00024942,2]
[316614226,1709563850199,-226.482385,0.00024942,2]
[316614228,1709563850209,-151.0,0.00024942,2]
[316614230,1709563850219,-151.0,0.00024942,2]
[316614232,1709563850228,-151.0,0.00024942,2]
[316614234,1709563850238,-151.0,0.00024942,2]
[316614236,1709563850248,-151.0,0.00024942,2]
[316614238,1709563850258,-270.806294,0.00024942,2]
[316614240,1709563850267,-151.165232,0.00024942,2]
[316614242,1709563850277,-200.109984,0.00024942,2]
[316614244,1709563850287,-151.0,0.00024942,2]
[316614246,1709563850296,-151.0,0.00024942,2]
[316614248,1709563850306,-151.0,0.00024942,2]
[316614250,1709563850316,-151.0,0.00024942,2]
[316614252,1709563850325,-151.0,0.00024942,2]
[316614254,1709563850334,-151.0,0.00024942,2]
[316614262,1709563850400,-151.0,0.00024942,2]
[316614264,1709563850418,-151.0,0.00024942,2]
[316614266,1709563850427,-151.0,0.00024942,2]
[316614268,1709563850437,-151.0,0.00024942,2]
[316614270,1709563850447,-151.0,0.00024942,2]
[316614272,1709563850457,-151.0,0.00024942,2]
[316614274,1709563850466,-151.0,0.00024942,2]
[316614276,1709563850475,-151.0,0.00024942,2]
[316614278,1709563850485,-152.947768,0.00024942,2]
[316614280,1709563850495,-151.0,0.00024942,2]
[316614282,1709563850504,-151.0,0.00024942,2]
[316614284,1709563850514,-151.0,0.00024942,2]
[316614286,1709563850524,-151.481086,0.00024942,2]
[316614288,1709563850533,-2528.518811,0.00024943,2]
[316614290,1709563850543,-2528.518811,0.00024943,2]
[316614292,1709563850553,-2528.518811,0.00024943,2]
[316614294,1709563850563,-2528.518811,0.00024943,2]
[316614295,1709563850573,-2528.518811,0.00024943,2]
[316614297,1709563850582,-2528.518811,0.00024943,2]
[316614299,1709563850591,-2528.518811,0.00024943,2]
[316614301,1709563850601,-2528.518811,0.00024943,2]
[316614303,1709563850610,-2528.518811,0.00024943,2]
[316614305,1709563850619,-2528.518811,0.00024943,2]
[316614307,1709563850628,-2528.518811,0.00024943,2]
[316614309,1709563850637,-2528.518811,0.00024943,2]
[316614310,1709563850647,-1975.23972525,0.00024943,2]
[316614316,1709563850699,-553.27908575,0.00024943,2]
[316614318,1709563850713,-2528.518811,0.00024943,2]
[316614320,1709563850722,-2528.518811,0.00024943,2]
[316614322,1709563850731,-2528.518811,0.00024943,2]
[316614324,1709563850741,-2528.518811,0.00024943,2]
[316614326,1709563850753,-2528.518811,0.00024943,2]
[316614328,1709563850763,-2528.518811,0.00024943,2]
[316614330,1709563850773,-2214.49058825,0.00024943,2]
[316614332,1709563850786,-314.02822729,0.00024943,2]
[316614334,1709563850796,-4686.33527271,0.00024943,30]
[316617372,1709564950167,-535.78782311,0.00020709,2]
[316617373,1709564950189,-15433.84892202,0.0002071,2]
[316617374,1709564950210,-697.50319911,0.0002071,2]
[316617375,1709564950230,-154.86062544,0.00020711,2]
[316617376,1709564950250,-13724.91807251,0.00020711,2]
[316617377,1709564950271,-1472.85786267,0.00020711,2]
[316617378,1709564950292,-154.86062544,0.00020712,2]
[316617379,1709564950312,-1472.85786267,0.00020712,2]
[316617380,1709564950331,-76.05557956,0.00020712,2]
[316617387,1709564978926,1007.67149225,0.000189,2]
[316617555,1709565033792,-174.198813,0.00020661,2]
[316617557,1709565033802,-154.86062544,0.00020708,2]
[316617559,1709565033812,-154.86062544,0.00020709,2]
[316617561,1709565033821,-154.86062544,0.0002071,2]
[316617563,1709565033830,-1080.24298436,0.00020718,2]
[316617565,1709565033839,-1220.9783855,0.00020719,2]
[316617567,1709565033849,-8774.9911618,0.00021149,2]
[316617569,1709565033860,-339.720612,0.00021458,2]
[316617571,1709565033869,-176.9885992,0.00021703,2]
[316617573,1709565033878,-525.0,0.00022755,2]
[316617575,1709565033888,-3237.82837071,0.00023081,5]
[316617577,1709565033897,-218.75,0.00023081,5]
[316617579,1709565033906,-324.36840922,0.00023081,5]
[316617581,1709565033916,-304.30525014,0.00023081,5]
[316617583,1709565033925,-500.0,0.00023899,2]
[316617585,1709565033934,-15433.84892202,0.00023899,2]
[316617587,1709565033943,-13724.91807251,0.00023899,2]
[316617589,1709565033952,-42213.20622953,0.000239,2]
[316617591,1709565033961,-1007.67149225,0.000239,2]
[316617593,1709565033970,-155.46406736,0.00023944,2]
[316617595,1709565033980,-424.28540708,0.00023954,2]
[316617597,1709565033989,-150.0,0.00024,2]
[316617599,1709565033998,-208.77342431,0.00024646,2]
[316617601,1709565034007,-264.45,0.00024647,3]
[316617602,1709565034017,-793.38,0.00024647,3]
[316617604,1709565034026,-174.14243068,0.00024655,2]
[316617606,1709565034036,-239.45276227,0.00024655,2]
[316617608,1709565034046,-3141.19599029,0.00024655,2]
[316617610,1709565034055,-1886.40812081,0.00024656,2]
[316617612,1709565034067,-485.52610705,0.00024657,2]
[316617614,1709565034076,-552.6875535,0.00024657,2]
[316617616,1709565034086,-504.73814792,0.00024657,2]
[316617618,1709565034098,-578.88614722,0.00024657,2]
[316617620,1709565034110,-518.10672454,0.00024657,2]
[316617622,1709565034119,-500.0,0.00024657,2]
[316617624,1709565034129,-506.88344355,0.00024657,2]
[316617626,1709565034139,-500.0,0.00024657,2]
[316617628,1709565034149,-500.0,0.00024657,2]
[316617630,1709565034158,-500.0,0.00024657,2]
[316617632,1709565034170,-500.0,0.00024657,2]
[316617634,1709565034179,-163.31288317,0.00024657,2]
[316617637,1709565034189,-500.0,0.00024657,2]
[316617638,1709565034198,-500.0,0.00024657,2]
[316617641,1709565034207,-500.0,0.00024657,2]
[316617643,1709565034217,-405.06300127,0.00024657,2]
[316617645,1709565034227,-501.71279349,0.00024657,2]
[316617647,1709565034237,-502.56799972,0.00024657,2]
[316617648,1709565034246,-581.52376501,0.00024657,2]
[316617650,1709565034254,-500.0,0.00024657,2]
[316617652,1709565034263,-500.0,0.00024657,2]
[316617654,1709565034273,-500.0,0.00024657,2]
[316617656,1709565034282,-500.0,0.00024657,2]
[316617658,1709565034291,-500.0,0.00024657,2]
[316617660,1709565034301,-509.68117145,0.00024657,2]
[316617662,1709565034311,-504.35120277,0.00024657,2]
[316617664,1709565034321,-500.0,0.00024657,2]
[316617665,1709565034330,-500.0,0.00024657,2]
[316617666,1709565034339,-500.0,0.00024657,2]
[316617667,1709565034348,-500.0,0.00024657,2]
[316617668,1709565034360,-500.0,0.00024657,2]
[316617669,1709565034370,-500.0,0.00024657,2]
[316617670,1709565034378,-500.0,0.00024657,2]
[316617671,1709565034388,-500.0,0.00024657,2]
[316617672,1709565034397,-500.0,0.00024657,2]
[316617673,1709565034406,-500.0,0.00024657,2]
[316617674,1709565034415,-500.0,0.00024657,2]
[316617675,1709565034425,-500.0,0.00024657,2]
[316617676,1709565034434,-271.26387455,0.00024657,2]
[316617677,1709565034443,-500.7488832,0.00024657,2]
[316617678,1709565034452,-564.46,0.00024657,2]
[316617679,1709565034462,-564.46,0.00024657,2]
[316617680,1709565034470,-564.46,0.00024657,2]
[316617681,1709565034479,-564.46,0.00024657,2]
[316617682,1709565034489,-564.46,0.00024657,2]
[316617683,1709565034498,-564.46,0.00024657,2]
[316617684,1709565034507,-564.46,0.00024657,2]
[316617685,1709565034517,-564.46,0.00024657,2]
[316617686,1709565034526,-564.46,0.00024657,2]
[316617687,1709565034536,-564.46,0.00024657,2]
[316617688,1709565034545,-564.46,0.00024657,2]
[316617689,1709565034554,-564.46,0.00024657,2]
[316617690,1709565034567,-564.46,0.00024657,2]
[316617691,1709565034576,-564.46,0.00024657,2]
[316617692,1709565034585,-500.0,0.00024657,2]
[316617693,1709565034594,-564.46,0.00024657,2]
[316617694,1709565034605,-505.41085245,0.00024657,2]
[316617695,1709565034614,-564.46,0.00024657,2]
[316617696,1709565034623,-564.46,0.00024657,2]
[316617697,1709565034632,-564.46,0.00024657,2]
[316617698,1709565034641,-564.46,0.00024657,2]
[316617699,1709565034650,-564.46,0.00024657,2]
[316617700,1709565034659,-564.46,0.00024657,2]
[316617701,1709565034668,-564.46,0.00024657,2]
[316617702,1709565034677,-564.46,0.00024657,2]
[316617703,1709565034687,-564.48092607,0.00024657,2]
[316617704,1709565034696,-500.0,0.00024657,2]
[316617705,1709565034705,-602.16,0.00024657,2]
[316617706,1709565034714,-315.96,0.00024657,2]
[316617707,1709565034724,-500.0,0.00024657,2]
[316617708,1709565034733,-500.0,0.00024657,2]
[316617709,1709565034742,-500.0,0.00024657,2]
[316617710,1709565034750,-500.0,0.00024657,2]
[316617711,1709565034759,-411.35686543,0.00024657,2]
[316617712,1709565034768,-297.85762821,0.00024657,2]
[316617713,1709565034777,-500.24950105,0.00024657,2]
[316617714,1709565034786,-283.54663088,0.00024657,2]
[316617715,1709565034795,-503.04528464,0.00024657,2]
[316617716,1709565034804,-500.0,0.00024657,2]
[316617717,1709565034813,-500.0,0.00024657,2]
[316617718,1709565034823,-500.0,0.00024657,2]
[316617719,1709565034831,-500.0,0.00024657,2]
[316617720,1709565034841,-335.82107986,0.00024657,2]
[316617721,1709565034850,-500.0,0.00024657,2]
[316617722,1709565034861,-500.0,0.00024657,2]
[316617723,1709565034870,-500.0,0.00024657,2]
[316617724,1709565034879,-500.0,0.00024657,2]
[316617725,1709565034888,-500.0,0.00024657,2]
[316617726,1709565034897,-500.0,0.00024657,2]
[316617727,1709565034906,-500.0,0.00024657,2]
[316617728,1709565034915,-410.05028276,0.00024657,2]
[316617729,1709565034925,-500.0,0.00024657,2]
[316617730,1709565034935,-500.0,0.00024657,2]
[316617731,1709565034944,-500.0,0.00024657,2]
[316617732,1709565034954,-500.0,0.00024657,2]
[316617733,1709565034963,-500.0,0.00024657,2]
[316617734,1709565034973,-500.0,0.00024657,2]
[316617735,1709565034982,-484.81677542,0.00024657,2]
[316617736,1709565034992,-500.0,0.00024657,2]
[316617737,1709565035001,-500.0,0.00024657,2]
[316617738,1709565035010,-500.0,0.00024657,2]
[316617739,1709565035019,-500.0,0.00024657,2]
[316617740,1709565035029,-500.0,0.00024657,2]
[316617741,1709565035040,-500.0,0.00024657,2]
[316617743,1709565035053,-500.0,0.00024657,2]
[316617745,1709565035062,-500.0,0.00024657,2]
[316617747,1709565035071,-500.0,0.00024657,2]
[316617748,1709565035082,-500.0,0.00024657,2]
[316617750,1709565035091,-500.0,0.00024657,2]
[316617752,1709565035100,-500.0,0.00024657,2]
[316617754,1709565035112,-500.0,0.00024657,2]
[316617755,1709565035122,-501.47733926,0.00024657,2]
[316617756,1709565035132,-388.8101085,0.00024657,2]
[316617757,1709565035142,-500.0,0.00024657,2]
[316617758,1709565035152,-500.0,0.00024657,2]
[316617759,1709565035161,-500.0,0.00024657,2]
[316617760,1709565035170,-527.06458324,0.00024657,2]
[316617761,1709565035180,-213.13599717,0.00024657,2]
[316617762,1709565035189,-155.3389547,0.00024657,2]
[316617763,1709565035199,-500.0,0.00024657,2]
[316617764,1709565035208,-500.0,0.00024657,2]
[316617765,1709565035218,-500.0,0.00024657,2]
[316617766,1709565035228,-500.0,0.00024657,2]
[316617767,1709565035237,-505.13560921,0.00024657,2]
[316617768,1709565035247,-503.0976539,0.00024657,2]
[316617769,1709565035256,-500.0,0.00024657,2]
[316617770,1709565035267,-500.0,0.00024657,2]
[316617771,1709565035277,-500.0,0.00024657,2]
[316617772,1709565035286,-500.0,0.00024657,2]
[316617773,1709565035295,-500.0,0.00024657,2]
[316617774,1709565035304,-500.0,0.00024657,2]
[316617775,1709565035314,-500.0,0.00024657,2]
[316617776,1709565035323,-500.0,0.00024657,2]
[316617777,1709565035332,-280.0,0.00024658,2]
[316617778,1709565035341,-164.0075834,0.000247,2]
[316617779,1709565035351,-164.0075834,0.00024736,2]
[316617780,1709565035362,-175.232388,0.00024737,2]
[316617781,1709565035372,-164.0075834,0.00024772,2]
[316617782,1709565035381,-8238.30978747,0.00024799,2]
[316617783,1709565035392,-3804.67076262,0.000248,2]
[316617784,1709565035401,-300.0,0.000248,11]
[316617785,1709565035410,-164.0075834,0.00024808,2]
[316617786,1709565035420,-151.48485454,0.00024818,2]
[316617787,1709565035430,-234.7015,0.00024818,2]
[316617788,1709565035439,-164.0075834,0.00024844,2]
[316617789,1709565035449,-732.9039615,0.00024844,2]
[316617790,1709565035458,-876.0,0.000249,2]
[316617791,1709565035468,-500.0,0.00024939,2]
[316617792,1709565035477,-2595.57809913,0.0002494,2]
[316617793,1709565035487,-228.23557901,0.0002494,2]
[316617794,1709565035497,-162.51170488,0.0002494,2]
[316617795,1709565035507,-1020.72251964,0.0002494,2]
[316617796,1709565035517,-529.55624868,0.0002494,2]
[316617797,1709565035526,-155.1339123,0.0002494,2]
[316617798,1709565035536,-557.72315857,0.0002494,2]
[316617799,1709565035545,-321.4643478,0.0002494,2]
[316617800,1709565035555,-500.0,0.0002494,2]
[316617801,1709565035565,-15985.63054266,0.00024941,2]
[316617802,1709565035574,-632.52,0.00024941,2]
[316617803,1709565035584,-500.0,0.00024941,2]
[316617804,1709565035594,-500.0,0.00024941,2]
[316617805,1709565035604,-500.0,0.00024941,2]
[316617806,1709565035613,-500.0,0.00024941,2]
[316617807,1709565035623,-214.50892528,0.00024942,2]
[316617808,1709565035632,-280.28110387,0.00024942,2]
[316617809,1709565035641,-187.81912112,0.00024942,2]
[316617810,1709565035650,-7405.12827299,0.00024942,2]
[316617811,1709565035659,-262.31089602,0.00024942,2]
[316617812,1709565035668,-327.32045809,0.00024942,2]
[316617813,1709565035677,-155.79833176,0.00024942,2]
[316617814,1709565035687,-496.95489588,0.00024942,2]
[316617815,1709565035696,-4261.70830135,0.00024942,2]
[316617816,1709565035705,-1482.45048278,0.00024942,4]
[316617817,1709565035715,-699.36886832,0.00024942,2]
[316617818,1709565035724,-155.06202481,0.00024942,2]
[316617819,1709565035734,-203.77241811,0.00024942,2]
[316617820,1709565035743,-534.24162099,0.00024942,2]
[316617821,1709565035753,-1438.88201536,0.00024942,2]
[316617822,1709565035762,-151.0,0.00024943,2]
[316617823,1709565035772,-151.0,0.00024943,2]
[316617824,1709565035781,-151.0,0.00024943,2]
[316617825,1709565035791,-151.0,0.00024943,2]
[316617826,1709565035800,-500.0,0.00024943,2]
[316617827,1709565035810,-500.0,0.00024943,2]
[316617828,1709565035820,-262.5984601,0.00024943,2]
[316617829,1709565035830,-500.0,0.00024943,2]
[316617830,1709565035840,-597.50840536,0.00024943,2]
[316617831,1709565035851,-500.0,0.00024943,2]
[316617832,1709565035864,-500.0,0.00024943,2]
[316617833,1709565035875,-500.0,0.00024943,2]
[316617834,1709565035885,-363.83642699,0.00024943,2]
[316617835,1709565035897,-501.90811861,0.00024943,2]
[316617836,1709565035908,-500.0,0.00024943,2]
[316617837,1709565035918,-500.0,0.00024943,2]
[316617838,1709565035929,-269.73,0.00024943,2]
[316617839,1709565035939,-500.0,0.00024943,2]
[316617840,1709565035949,-500.0,0.00024943,2]
[316617841,1709565035959,-515.83085203,0.00024943,2]
[316617842,1709565035969,-500.0,0.00024943,2]
[316617843,1709565035980,-500.0,0.00024943,2]
[316617844,1709565035991,-500.0,0.00024943,2]
[316617845,1709565036001,-500.0,0.00024943,2]
[316617846,1709565036010,-506.4,0.00024943,2]
[316617847,1709565036020,-500.0,0.00024943,2]
[316617848,1709565036030,-500.0,0.00024943,2]
[316617849,1709565036042,-500.0,0.00024943,2]
[316617850,1709565036053,-500.0,0.00024943,2]
[316617851,1709565036064,-500.0,0.00024943,2]
[316617852,1709565036079,-500.0,0.00024943,2]
[316617853,1709565036090,-500.0,0.00024943,2]
[316617854,1709565036101,-500.0,0.00024943,2]
[316617855,1709565036116,-500.0,0.00024943,2]
[316617856,1709565036126,-500.0,0.00024943,2]
[316617857,1709565036136,-500.0,0.00024943,2]
[316617858,1709565036146,-500.0,0.00024943,2]
[316617859,1709565036157,-500.0,0.00024943,2]
[316617860,1709565036167,-500.0,0.00024943,2]
[316617861,1709565036177,-500.0,0.00024943,2]
[316617862,1709565036188,-500.0,0.00024943,2]
[316617863,1709565036198,-574.7,0.00024943,2]
[316617864,1709565036209,-195.383375,0.00024944,2]
[316617865,1709565036218,-151.0,0.00024944,2]
[316617866,1709565036228,-151.0,0.00024944,2]
[316617867,1709565036239,-151.0,0.00024944,2]
[316617868,1709565036249,-151.0,0.00024944,2]
[316617869,1709565036258,-151.0,0.00024944,2]
[316617870,1709565036268,-184.336773,0.00024944,2]
[316617871,1709565036278,-151.0,0.00024944,2]
[316617872,1709565036289,-264.45760079,0.0002495,3]
[316617873,1709565036299,-1202566.0482994,0.0002495,30]
[316617892,1709565038660,-14637.46565515,0.0002495,30]
[316617893,1709565038672,-2339.61199988,0.0002495,30]
[316617894,1709565038684,-659.6057955,0.0002495,30]
[316617990,1709565041779,-296.94245282,0.00024744,2]
[316617992,1709565041789,-4489.39894718,0.0002495,30]
[316618186,1709565043751,-48054.60748862,0.0002495,30]
[316618188,1709565043762,-7060.00000013,0.0002495,30]
[316618191,1709565043774,-6599.99999999,0.0002495,30]
[316618496,1709565046759,-167.924549,0.00023543,2]
[316618498,1709565046769,-154.86062544,0.00024949,2]
[316618500,1709565046777,-12906.36635015,0.0002495,30]
[316623619,1709566231955,-535.78782311,0.0002192,2]